{"text_format":"1","workbook":"xlsx","n_sheets":3,"sheets":["H27調査票（直接入力)","H27コード表一覧","コード・短縮項目名"],"not_rendered":{"charts":0,"images":1,"macros":1,"external_links":2,"defined_names":42,"comments":0,"pivot_tables":0},"unopened":[],"bounds":{"document_bytes":16777216,"sheet_cells":100000,"rows_first":2000,"rows_last":500,"rows_between":2000,"halvings":0,"cell_chars":16384,"cell_head_chars":4096},"cells_cut":0,"cells_raw":0,"read":"whole","date_system":"1900"}

{"sheet":"H27調査票（直接入力)","index":0,"n_rows":1018,"n_cols":24,"rows_kept":1018,"cut":false,"hidden":false,"merged":[[9,14,9,17],[10,17,11,17],[10,16,11,16],[1016,5,1016,23],[1012,5,1012,23],[1015,5,1015,23],[9,22,11,22],[9,23,11,23],[10,12,11,12],[10,13,11,13],[10,14,11,14],[10,15,11,15],[9,12,9,13],[9,19,11,19],[9,20,11,20],[9,21,11,21],[8,18,11,18],[8,19,8,23],[9,9,11,9],[8,1,11,1],[8,9,8,11],[9,10,11,10],[9,4,11,4],[9,5,11,5],[9,6,11,6],[9,7,11,7],[9,8,11,8],[9,11,11,11],[8,2,11,2],[9,3,11,3],[8,12,8,17],[8,3,8,8],[6,6,6,12],[5,21,5,23],[6,21,6,23],[1,19,1,20],[2,19,2,20],[3,19,3,20],[4,18,4,20],[5,19,5,20],[1,21,1,23],[2,21,2,23],[3,21,3,23],[4,21,4,23],[6,19,6,20]]}
[null,null,null,null,null,null,null,null,null,null,null,null,null,null,null,null,null,null,null,null,null,"連絡先"]
[null,null,null,null,null,null,null,null,null,null,null,null,null,null,null,null,null,null,null,"機関コード："]
[null,null,null,null,null,null,null,null,null,null,null,null,null,null,null,null,null,null,null,"機関名："]
[null,null,null,null,null,null,null,null,null,null,"「ポストドクター等の雇用・進路に関する調査」調査票",null,null,null,null,null,null,null,null,"所属部署："]
[null,null,null,null,null,null,null,null,null,null,null,null,null,null,null,null,null,null,"担当者名（ふりがな）："]
[null,null,null,null,null,null,null,null,null,null,null,null,null,null,null,null,null,null,null,"電話番号："]
[null,null,null,null,null,null,"ポストドクター等在籍者総数  平成27年度（2015年度）実績",null,null,null,null,null,null,null,"←送信用ブック作成時に自動でカウントして入力されます",null,null,null,null,"メールアドレス："]
[]
[null,null,"1.氏名等（整理用）","基本情報",null,null,null,null,null,"採用前の状況",null,null,"ポストドクター等としての研究・雇用状況",null,null,null,null,null,"17.在籍状況\n（平成28年４月１日時点）","ポストドクターの転出・異動状況"]
[null,null,null,"2.学部・研究科・部署の名称","3.性別\n(戸籍上の)","4.国籍","5.生年\n（西暦4ケタ）","6.博士課程修了年度\n（西暦4ケタ）","7.博士号の有無","8.採用前の職業","9.所属","10.所在","研究状況",null,"雇用状況",null,null,null,null,"18.転出・異動後の職業","19.所属","20.所在","21.任期","22.詳細（分かる範囲で）\n\n・ 職業等がわかる場合はその詳細\n・民間企業等に就職した場合は機関名や業種\n・無職の場合はその内容等"]
[null,null,null,null,null,null,null,null,null,null,null,null,"11.分野","12.在籍研究室の企業との共同・受託研究の実績","13.主な雇用財源","14.機関負担の社会保険加入状況","15.所属開始年\n（西暦4ケタ）","16 任期の長さ\n"]
[]
[null,1]
[null,{"$f":"B13+1","v":2}]
[null,{"$f":"B14+1","v":3}]
[null,4]
[null,5]
[null,6]
[null,7]
[null,8]
[null,9]
[null,10]
[null,11]
[null,12]
[null,13]
[null,{"$f":"B25+1","v":14}]
[null,15]
[null,16]
[null,17]
[null,18]
[null,19]
[null,20]
[null,21]
[null,22]
[null,23]
[null,24]
[null,25]
[null,26]
[null,27]
[null,28]
[null,29]
[null,30]
[null,31]
[null,32]
[null,33]
[null,34]
[null,35]
[null,36]
[null,37]
[null,38]
[null,39]
[null,40]
[null,41]
[null,42]
[null,43]
[null,44]
[null,45]
[null,46]
[null,47]
[null,48]
[null,49]
[null,50]
[null,51]
[null,52]
[null,53]
[null,54]
[null,55]
[null,56]
[null,57]
[null,58]
[null,59]
[null,60]
[null,61]
[null,62]
[null,63]
[null,64]
[null,65]
[null,66]
[null,{"$f":"B78+1","v":67}]
[null,68]
[null,69]
[null,70]
[null,71]
[null,72]
[null,73]
[null,74]
[null,75]
[null,76]
[null,77]
[null,78]
[null,79]
[null,80]
[null,81]
[null,82]
[null,83]
[null,84]
[null,85]
[null,86]
[null,87]
[null,88]
[null,89]
[null,90]
[null,91]
[null,92]
[null,93]
[null,94]
[null,95]
[null,96]
[null,97]
[null,98]
[null,99]
[null,100]
[null,101]
[null,102]
[null,103]
[null,104]
[null,105]
[null,106]
[null,107]
[null,108]
[null,109]
[null,110]
[null,111]
[null,112]
[null,113]
[null,114]
[null,115]
[null,116]
[null,117]
[null,118]
[null,119]
[null,120]
[null,121]
[null,122]
[null,123]
[null,124]
[null,125]
[null,126]
[null,127]
[null,128]
[null,129]
[null,130]
[null,{"$f":"B142+1","v":131}]
[null,132]
[null,133]
[null,134]
[null,135]
[null,136]
[null,137]
[null,138]
[null,139]
[null,140]
[null,141]
[null,142]
[null,143]
[null,144]
[null,145]
[null,146]
[null,147]
[null,148]
[null,149]
[null,150]
[null,151]
[null,152]
[null,153]
[null,154]
[null,155]
[null,156]
[null,157]
[null,158]
[null,159]
[null,160]
[null,161]
[null,162]
[null,163]
[null,164]
[null,165]
[null,166]
[null,167]
[null,168]
[null,169]
[null,170]
[null,171]
[null,172]
[null,173]
[null,174]
[null,175]
[null,176]
[null,177]
[null,178]
[null,179]
[null,180]
[null,181]
[null,182]
[null,183]
[null,184]
[null,185]
[null,186]
[null,187]
[null,188]
[null,189]
[null,190]
[null,191]
[null,192]
[null,193]
[null,194]
[null,{"$f":"B206+1","v":195}]
[null,196]
[null,197]
[null,198]
[null,199]
[null,200]
[null,201]
[null,202]
[null,203]
[null,204]
[null,205]
[null,206]
[null,207]
[null,208]
[null,209]
[null,210]
[null,211]
[null,212]
[null,213]
[null,214]
[null,215]
[null,216]
[null,217]
[null,218]
[null,219]
[null,220]
[null,221]
[null,222]
[null,223]
[null,224]
[null,225]
[null,226]
[null,227]
[null,228]
[null,229]
[null,230]
[null,231]
[null,232]
[null,233]
[null,234]
[null,235]
[null,236]
[null,237]
[null,238]
[null,239]
[null,240]
[null,241]
[null,242]
[null,243]
[null,244]
[null,245]
[null,246]
[null,247]
[null,248]
[null,249]
[null,250]
[null,251]
[null,252]
[null,253]
[null,254]
[null,255]
[null,256]
[null,257]
[null,258]
[null,{"$f":"B270+1","v":259}]
[null,260]
[null,261]
[null,262]
[null,263]
[null,264]
[null,265]
[null,266]
[null,267]
[null,268]
[null,269]
[null,270]
[null,271]
[null,272]
[null,273]
[null,274]
[null,275]
[null,276]
[null,277]
[null,278]
[null,279]
[null,280]
[null,281]
[null,282]
[null,283]
[null,284]
[null,285]
[null,286]
[null,287]
[null,288]
[null,289]
[null,290]
[null,291]
[null,292]
[null,293]
[null,294]
[null,295]
[null,296]
[null,297]
[null,298]
[null,299]
[null,300]
[null,301]
[null,302]
[null,303]
[null,304]
[null,305]
[null,306]
[null,307]
[null,308]
[null,309]
[null,310]
[null,311]
[null,312]
[null,313]
[null,314]
[null,315]
[null,316]
[null,317]
[null,318]
[null,319]
[null,320]
[null,321]
[null,322]
[null,{"$f":"B334+1","v":323}]
[null,324]
[null,325]
[null,326]
[null,327]
[null,328]
[null,329]
[null,330]
[null,331]
[null,332]
[null,333]
[null,334]
[null,335]
[null,336]
[null,337]
[null,338]
[null,339]
[null,340]
[null,341]
[null,342]
[null,343]
[null,344]
[null,345]
[null,346]
[null,347]
[null,348]
[null,349]
[null,350]
[null,351]
[null,352]
[null,353]
[null,354]
[null,355]
[null,356]
[null,357]
[null,358]
[null,359]
[null,360]
[null,361]
[null,362]
[null,363]
[null,364]
[null,365]
[null,366]
[null,367]
[null,368]
[null,369]
[null,370]
[null,371]
[null,372]
[null,373]
[null,374]
[null,375]
[null,376]
[null,377]
[null,378]
[null,379]
[null,380]
[null,381]
[null,382]
[null,383]
[null,384]
[null,385]
[null,386]
[null,{"$f":"B398+1","v":387}]
[null,388]
[null,389]
[null,390]
[null,391]
[null,392]
[null,393]
[null,394]
[null,395]
[null,396]
[null,397]
[null,398]
[null,399]
[null,400]
[null,401]
[null,402]
[null,403]
[null,404]
[null,405]
[null,406]
[null,407]
[null,408]
[null,409]
[null,410]
[null,411]
[null,412]
[null,413]
[null,414]
[null,415]
[null,416]
[null,417]
[null,418]
[null,419]
[null,420]
[null,421]
[null,422]
[null,423]
[null,424]
[null,425]
[null,426]
[null,427]
[null,428]
[null,429]
[null,430]
[null,431]
[null,432]
[null,433]
[null,434]
[null,435]
[null,436]
[null,437]
[null,438]
[null,439]
[null,440]
[null,441]
[null,442]
[null,443]
[null,444]
[null,445]
[null,446]
[null,447]
[null,448]
[null,449]
[null,450]
[null,{"$f":"B462+1","v":451}]
[null,452]
[null,453]
[null,454]
[null,455]
[null,456]
[null,457]
[null,458]
[null,459]
[null,460]
[null,461]
[null,462]
[null,463]
[null,464]
[null,465]
[null,466]
[null,467]
[null,468]
[null,469]
[null,470]
[null,471]
[null,472]
[null,473]
[null,474]
[null,475]
[null,476]
[null,477]
[null,478]
[null,479]
[null,480]
[null,481]
[null,482]
[null,483]
[null,484]
[null,485]
[null,486]
[null,487]
[null,488]
[null,489]
[null,490]
[null,491]
[null,492]
[null,493]
[null,494]
[null,495]
[null,496]
[null,497]
[null,498]
[null,499]
[null,500]
[null,501]
[null,502]
[null,503]
[null,504]
[null,505]
[null,506]
[null,507]
[null,508]
[null,509]
[null,510]
[null,511]
[null,512]
[null,513]
[null,514]
[null,{"$f":"B526+1","v":515}]
[null,516]
[null,517]
[null,518]
[null,519]
[null,520]
[null,521]
[null,522]
[null,523]
[null,524]
[null,525]
[null,526]
[null,527]
[null,528]
[null,529]
[null,530]
[null,531]
[null,532]
[null,533]
[null,534]
[null,535]
[null,536]
[null,537]
[null,538]
[null,539]
[null,540]
[null,541]
[null,542]
[null,543]
[null,544]
[null,545]
[null,546]
[null,547]
[null,548]
[null,549]
[null,550]
[null,551]
[null,552]
[null,553]
[null,554]
[null,555]
[null,556]
[null,557]
[null,558]
[null,559]
[null,560]
[null,561]
[null,562]
[null,563]
[null,564]
[null,565]
[null,566]
[null,567]
[null,568]
[null,569]
[null,570]
[null,571]
[null,572]
[null,573]
[null,574]
[null,575]
[null,576]
[null,577]
[null,578]
[null,{"$f":"B590+1","v":579}]
[null,580]
[null,581]
[null,582]
[null,583]
[null,584]
[null,585]
[null,586]
[null,587]
[null,588]
[null,589]
[null,590]
[null,591]
[null,592]
[null,593]
[null,594]
[null,595]
[null,596]
[null,597]
[null,598]
[null,599]
[null,600]
[null,601]
[null,602]
[null,603]
[null,604]
[null,605]
[null,606]
[null,607]
[null,608]
[null,609]
[null,610]
[null,611]
[null,612]
[null,613]
[null,614]
[null,615]
[null,616]
[null,617]
[null,618]
[null,619]
[null,620]
[null,621]
[null,622]
[null,623]
[null,624]
[null,625]
[null,626]
[null,627]
[null,628]
[null,629]
[null,630]
[null,631]
[null,632]
[null,633]
[null,634]
[null,635]
[null,636]
[null,637]
[null,638]
[null,639]
[null,640]
[null,641]
[null,642]
[null,{"$f":"B654+1","v":643}]
[null,644]
[null,645]
[null,646]
[null,647]
[null,648]
[null,649]
[null,650]
[null,651]
[null,652]
[null,653]
[null,654]
[null,655]
[null,656]
[null,657]
[null,658]
[null,659]
[null,660]
[null,661]
[null,662]
[null,663]
[null,664]
[null,665]
[null,666]
[null,667]
[null,668]
[null,669]
[null,670]
[null,671]
[null,672]
[null,673]
[null,674]
[null,675]
[null,676]
[null,677]
[null,678]
[null,679]
[null,680]
[null,681]
[null,682]
[null,683]
[null,684]
[null,685]
[null,686]
[null,687]
[null,688]
[null,689]
[null,690]
[null,691]
[null,692]
[null,693]
[null,694]
[null,695]
[null,696]
[null,697]
[null,698]
[null,699]
[null,700]
[null,701]
[null,702]
[null,703]
[null,704]
[null,705]
[null,706]
[null,{"$f":"B718+1","v":707}]
[null,708]
[null,709]
[null,710]
[null,711]
[null,712]
[null,713]
[null,714]
[null,715]
[null,716]
[null,717]
[null,718]
[null,719]
[null,720]
[null,721]
[null,722]
[null,723]
[null,724]
[null,725]
[null,726]
[null,727]
[null,728]
[null,729]
[null,730]
[null,731]
[null,732]
[null,733]
[null,734]
[null,735]
[null,736]
[null,737]
[null,738]
[null,739]
[null,740]
[null,741]
[null,742]
[null,743]
[null,744]
[null,745]
[null,746]
[null,747]
[null,748]
[null,749]
[null,750]
[null,751]
[null,752]
[null,753]
[null,754]
[null,755]
[null,756]
[null,757]
[null,758]
[null,759]
[null,760]
[null,761]
[null,762]
[null,763]
[null,764]
[null,765]
[null,766]
[null,767]
[null,768]
[null,769]
[null,770]
[null,{"$f":"B782+1","v":771}]
[null,772]
[null,773]
[null,774]
[null,775]
[null,776]
[null,777]
[null,778]
[null,779]
[null,780]
[null,781]
[null,782]
[null,783]
[null,784]
[null,785]
[null,786]
[null,787]
[null,788]
[null,789]
[null,790]
[null,791]
[null,792]
[null,793]
[null,794]
[null,795]
[null,796]
[null,797]
[null,798]
[null,799]
[null,800]
[null,801]
[null,802]
[null,803]
[null,804]
[null,805]
[null,806]
[null,807]
[null,808]
[null,809]
[null,810]
[null,811]
[null,812]
[null,813]
[null,814]
[null,815]
[null,816]
[null,817]
[null,818]
[null,819]
[null,820]
[null,821]
[null,822]
[null,823]
[null,824]
[null,825]
[null,826]
[null,827]
[null,828]
[null,829]
[null,830]
[null,831]
[null,832]
[null,833]
[null,834]
[null,{"$f":"B846+1","v":835}]
[null,836]
[null,837]
[null,838]
[null,839]
[null,840]
[null,841]
[null,842]
[null,843]
[null,844]
[null,845]
[null,846]
[null,847]
[null,848]
[null,849]
[null,850]
[null,851]
[null,852]
[null,853]
[null,854]
[null,855]
[null,856]
[null,857]
[null,858]
[null,859]
[null,860]
[null,861]
[null,862]
[null,863]
[null,864]
[null,865]
[null,866]
[null,867]
[null,868]
[null,869]
[null,870]
[null,871]
[null,872]
[null,873]
[null,874]
[null,875]
[null,876]
[null,877]
[null,878]
[null,879]
[null,880]
[null,881]
[null,882]
[null,883]
[null,884]
[null,885]
[null,886]
[null,887]
[null,888]
[null,889]
[null,890]
[null,891]
[null,892]
[null,893]
[null,894]
[null,895]
[null,896]
[null,897]
[null,898]
[null,{"$f":"B910+1","v":899}]
[null,900]
[null,901]
[null,902]
[null,903]
[null,904]
[null,905]
[null,906]
[null,907]
[null,908]
[null,909]
[null,910]
[null,911]
[null,912]
[null,913]
[null,914]
[null,915]
[null,916]
[null,917]
[null,918]
[null,919]
[null,920]
[null,921]
[null,922]
[null,923]
[null,924]
[null,925]
[null,926]
[null,927]
[null,928]
[null,929]
[null,930]
[null,931]
[null,932]
[null,933]
[null,934]
[null,935]
[null,936]
[null,937]
[null,938]
[null,939]
[null,940]
[null,941]
[null,942]
[null,943]
[null,944]
[null,945]
[null,946]
[null,947]
[null,948]
[null,949]
[null,950]
[null,951]
[null,952]
[null,953]
[null,954]
[null,955]
[null,956]
[null,957]
[null,958]
[null,959]
[null,960]
[null,961]
[null,962]
[null,{"$f":"B974+1","v":963}]
[null,964]
[null,965]
[null,966]
[null,967]
[null,968]
[null,969]
[null,970]
[null,971]
[null,972]
[null,973]
[null,974]
[null,975]
[null,976]
[null,977]
[null,978]
[null,979]
[null,980]
[null,981]
[null,982]
[null,983]
[null,984]
[null,985]
[null,986]
[null,987]
[null,988]
[null,989]
[null,990]
[null,991]
[null,992]
[null,993]
[null,994]
[null,995]
[null,996]
[null,997]
[null,998]
[null,999]
[null,1000]
[]
[null,null,null,null,"※18-21の設問については、「17. 在籍状況（平成28年４月１日時点）」において、「3.同一機関内で職階・職種を変更（ポストドクター等以外の職）」もしくは「4.当該機関を転出」を選択した場合にのみお答えください。それ以外は、空欄としてください。"]
[null,null,null,null,"※「22. 詳細」欄には、わかる範囲で、以下の詳細についてご記入ください。"]
[null,null,null,null,null,"（ア） 職業等がわかる場合には、その詳細（「特任助教（テニュアトラック）」、「リサーチ・アドミニストレーター」、「弁理士」、「博物館学芸員」、「サイエンスライター」、「バイオベンチャー起業」等）"]
[null,null,null,null,null,"（イ） 民間企業等に就職した場合には、その機関名、業種等の詳細（「株式会社△△」、「化学工業」等）"]
[null,null,null,null,null,"（ウ） 「無職」の場合は、その内容（「就職活動中」、「病気療養」等）"]

{"sheet":"H27コード表一覧","index":1,"n_rows":72,"n_cols":15,"rows_kept":72,"cut":false,"hidden":false,"merged":[[12,4,12,5],[18,4,18,5],[16,4,16,5],[15,4,15,5],[13,4,13,5],[14,4,14,5],[71,4,71,5],[5,8,5,9],[6,8,6,9],[3,8,3,10],[67,4,70,4],[54,8,54,9],[57,8,57,9],[56,8,56,9],[63,4,66,4],[59,4,62,4],[59,8,59,9],[58,8,58,9],[6,4,6,5],[5,4,5,5],[4,4,4,5],[17,4,17,5],[70,12,70,13],[1,1,1,13],[26,4,26,6],[27,4,33,4],[34,4,44,4],[54,4,58,4],[8,8,8,10],[9,8,9,10],[10,8,10,10],[11,8,11,9],[4,8,4,9],[69,12,69,13],[24,4,24,5],[23,4,23,5],[22,4,22,5],[21,4,21,5],[7,4,7,5],[45,8,45,9],[46,8,46,9],[47,8,47,9],[8,4,8,5],[11,4,11,5],[10,4,10,5],[9,4,9,5],[45,4,53,4],[12,8,12,9],[50,8,50,9],[51,8,51,9],[52,8,52,9],[53,8,53,9],[20,4,20,5],[19,4,19,5]]}
[]
[null,"コード表一覧"]
[]
[null,"3. 性別",null,null,null,"9. 所属&19. 所属",null,null,"12. 在籍研究室の企業との共同・受託研究の実績　※8",null,null,null,"14. 機関負担の社会保険（共済・厚生年金、健康保険）加入状況"]
[null,"男性",1,null,"教育機関",null,null,null,"民間企業との共同・受託研究契約あり",null,1,null,"負担している",1]
[null,"女性",2,null,"　　国内の教育機関",null,null,null,"民間企業との共同・受託研究契約なし",null,2,null,"負担していない",2]
[null,null,null,null,"　　　　国立大学法人（附属病院を含む）",null,11,null,"不明",null,9]
[null,"4. 国籍&10. 所在&20. 所在",null,null,"　　　　公立大学（附属病院を含む）",null,12,null,null,null,null,null,"16 任期の長さ"]
[null,"日本 ",10,null,"　　　　私立大学（附属病院を含む）",null,13,null,"13. 主な雇用財源 ※9 （別表2参照）",null,null,null,"1年未満",1]
[null,"北・中・南米",null,null,"　　　　大学共同利用機関",null,14,null,"競争的資金（直接経費）",null,null,null,"1年以上2年未満",2]
[null,"　　アメリカ合衆国",21,null,"　　　　高専・短大",null,15,null,"　　文部科学省関連の競争的資金",null,null,null,"2年以上3年未満",3]
[null,"　　カナダ",22,null,"　　　　幼稚園・特別支援学校・小学校・中学校・高等学校",null,16,null,"　　　　科学研究費補助金",null,1,null,"3年以上4年未満",4]
[null,"　　ブラジル",23,null,"　　　　上記以外の教育機関（塾・予備校など） ※4",null,19,null,"　　　　戦略的創造研究推進事業",null,null,null,"4年以上5年以下",5]
[null,"欧州（ヨーロッパ）",null,null,"　　国外の教育機関",null,null,null,null,"新技術シーズ創出",null,null,"雇用関係なし",6]
[null,"　　フランス",31,null,"　　　　国立・公立大学相当（附属病院を含む）",null,21,null,null,"　　CREST",2,null,"不明",9]
[null,"　　ロシア",32,null,"　　　　私立大学相当（附属病院を含む）",null,22,null,null,"　　ERATO",3]
[null,"　　ドイツ",33,null,"　　　　上記以外の教育機関（分類不能を含む）",null,29,null,null,"　　さきがけ",4,null,"17. 在籍状況"]
[null,"　　イギリス",34,null,"公的研究機関 ※5",null,30,null,null,"　　ACCEL",5,null,"変更なし",1]
[null,"アジア",null,null,"官公庁 ※6",null,40,null,null,"革新的先端研究開発支援事業",6,null,"同一機関内でポストドクター等として雇用財源・研究室を変更",2]
[null,"　　中国",41,null,"民間企業（起業、自営業を含む）",null,50,null,null,"先端的低炭素化技術開発",7,null,"同一機関内で職階・職種を変更（ポストドクター等以外の職）",3]
[null,"　　台湾",42,null,"非営利団体（公益法人、NPO法人、医療法人など）",null,60,null,null,"社会技術研究開発",8,null,"当該機関を転出",4]
[null,"　　韓国",43,null,"国際機関",null,70,null,"　　　　研究成果展開事業",null,null,null,"不詳・死亡",9]
[null,"　　タイ",44,null,"その他の機関（分類不能な機関を含む）",null,80,null,null,"研究成果最適展開支援プログラム",9]
[null,"　　インドネシア",45,null,"無所属（無職、専業主夫・婦など）",null,90,null,null,"戦略的イノベーション創出推進プログラム",10,null,"18. 転出・異動後の職業"]
[null,"　　ベトナム",46,null,"不明",null,99,null,null,"センター･オブ･イノベーション（COI）プログラム",11,null,"研究・開発職"]
[null,"　　バングラデシュ",47,null,null,null,null,null,null,"産学共創基礎基盤研究プログラム",12,null,"　　ポストドクター等　※1",11]
[null,"　　マレーシア",48,null,"11. 分野  ※7　",null,null,null,null,"マッチングプランナープログラム",13,null,"　　大学教員（高専、短大、大学共同利用機関を含む）（ポストドクター等を除く）"]
[null,"　　インド",49,null,"理学","数学",101,null,null,"大学発新産業創出プログラム",14,null,"　　　　助教・助手",12]
[null,"オセアニア",null,null,null,"情報科学",102,null,null,"世界に誇る地域発研究開発・実証拠点（リサーチコンプレックス）推進プログラム",15,null,"　　　　講師",13]
[null,"　　オーストラリア",51,null,null,"物理",103,null,null,"先端計測分析技術・機器開発プログラム",16,null,"　　　　准教授",14]
[null,"アフリカ",null,null,null,"化学",104,null,null,"医療分野研究成果展開事業",17,null,"　　　　教授",15]
[null,"　　エジプト",61,null,null,"生物",105,null,"　　　　国際科学技術共同研究推進事業",null,null,null,"　　　　職階不明",19]
[null,"中近東",null,null,null,"地学",106,null,null,"地球規模課題対応国際科学技術協力プログラム",18,null,"　　大学教員以外の研究・開発職（ポストドクター等を除く）"]
[null,"　　イラン",71,null,null,"その他（分類不能を含む）",109,null,null,"戦略的国際共同研究プログラム",19,null,"　　　　研究・開発グループ・リーダー、主任研究員（相当）",21]
[null,"上記以外の国（セルに直接記入してください）",null,null,"工学","機械・船舶",201,null,null,"医療分野国際科学技術共同研究開発推進事業",20,null,"　　　　上記以外の研究・開発者（ポストドクター等を除く）",22]
[null,"不明",99,null,null,"電気・通信",202,null,"　　　　国家課題対応型研究開発推進事業",null,null,null,"　　派遣型研究・開発者（登録型、常用型）　※10",23]
[null,null,null,null,null,"土木・建築",203,null,null,"再生医療実現拠点ネットワークプログラム",21,null,"　　研究補助者・技能者など（技官など）　※2",24]
[null,"7. 博士号の有無",null,null,null,"応用化学",204,null,null,"脳科学研究戦略推進プログラム・脳機能ネットワークの全容解明プロジェクト",22,null,"　　その他の研究・開発職（分類不能を含む）",25]
[null,"博士号あり（国内機関より授与）",1,null,null,"応用理学",205,null,null,"未来社会実現のためのICT基盤技術の研究開発",23,null,"非研究・開発職"]
[null,"博士号あり（国外機関より授与）",2,null,null,"原子力",206,null,null,"ナノテクノロジーを活用した環境技術開発",24,null,"　　教育関係職"]
[null,"博士号なし（満期退学）",3,null,null,"材料",207,null,null,"元素戦略プロジェクト＜研究拠点形成型＞",25,null,"　　　　教員（幼稚園・特別支援学校・小学校・中学校・高等学校）",31]
[null,null,null,null,null,"繊維",208,null,null,"光・量子科学研究拠点形成に向けた基盤技術開発",26,null,"　　　　その他の教育職（塾・予備校講師など）",32]
[null,"8. 採用前の職業",null,null,null,"航空",209,null,null,"宇宙航空科学技術推進委託費",27,null,"　　　　上記以外の教育関係職（教育支援・カウンセラーなど）・分類不能な教育関係職",33]
[null,"学生",null,null,null,"経営工学",210,null,null,"原子力システム研究開発事業",28,null,"　　専門知識を要する職業"]
[null,"　　博士課程学生（自機関の博士課程出身者）",11,null,null,"その他（分類不能を含む）",299,null,null,"英知を結集した原子力科学技術・人材育成推進事業",29,null,"　　　　医師、歯科医師、獣医師、薬剤師",41]
[null,"　　博士課程学生（他機関の博士課程出身者）",12,null,"農学","農学",301,null,"　　　　内閣府関連の競争的資金",null,30,null,"　　　　知的財産関連職（弁護士、弁理士など） ※11",42]
[null,"　　上記以外の学生（分類不能を含む）",13,null,null,"農芸化学",302,null,"　　　　総務省関連の競争的資金",null,31,null,"　　　　産学連携コーディネーター ※12",43]
[null,"研究・開発職",null,null,null,"農業工学",303,null,"　　　　厚生労働省関連の競争的資金",null,null,null,"　　　　リサーチ・アドミニストレータ―  ※13",44]
[null,"　　ポストドクター等　※1",21,null,null,"農業経済",304,null,null,"厚生労働科学研究費補助金",32,null,"　　　　科学技術コミュニケーター（科学記者、学芸員など） ※14",45]
[null,"　　大学教員（高専、短大、大学共同利用機関を含む）",22,null,null,"林学",305,null,null,"医療研究開発推進事業費補助金",33,null,"　　　　その他の専門知識を要する非研究・開発職",46]
[null,"　　その他の研究・開発職（分類不能を含む）",23,null,null,"林産学",306,null,"　　　　農林水産省関連の競争的資金",null,34,null,"　　公務員（教育関係職、専門知識を要する職を除く）",47]
[null,"　　研究補助者・技能者など（技官など）　※2",24,null,null,"獣医・畜産",307,null,"　　　　経済産業省関連の競争的資金",null,35,null,"　　起業（ベンチャーなど）",48,1]
[null,"非研究・開発職",null,null,null,"水産",308,null,"　　　　国土交通省関連の競争的資金",null,36,null,"　　その他の非研究・開発職（事務職など）、分類不能な職業",49,2]
[null,"　　教員（幼稚園・特別支援学校・小学校・中学校・高等学校）",31,null,null,"その他（分類不能を含む）",309,null,"　　　　環境省関連の競争的資金",null,37,null,"その他",null,8]
[null,"　　教員以外の非研究・開発職　※3",32,null,"保健","医学",401,null,"　　　　防衛省関連の競争的資金",null,38,null,"　　学生",50,9]
[null,"その他分類不能な職",40,null,null,"歯学",402,null,"競争的資金以外の外部資金",null,null,null,"　　専業主夫・婦",60]
[null,"無職（専業主夫・婦を含む）",50,null,null,"薬学",403,null,"　　　　世界トップレベル研究拠点プログラム(WPI)",null,39,null,"　　無職（専業主夫・婦を除く）",70]
[null,"不明",99,null,null,"看護",404,null,"　　　　科学技術人材育成費補助金",null,40,null,"不明",99]
[null,null,null,null,null,"その他（分類不能を含む）",409,null,"　　　　博士課程教育リーディングプログラム",null,41]
[null,null,null,null,"人文","文学",501,null,"　　　　国以外からの外部資金（民間企業・財団等）",null,42,null,"21. 任期"]
[null,null,null,null,null,"史学",502,null,"運営費交付金、私学助成、その他の自主財源",null,43,null,"あり"]
[null,null,null,null,null,"哲学",503,null,"間接経費",null,44,null,"　　テニュアトラック※15",1]
[null,null,null,null,null,"その他（分類不能を含む）",509,null,"フェローシップ",null,null,null,"　　テニュアトラック以外で任期あり（テニュアトラックかどうか不明を含む）",2]
[null,null,null,null,"社会","法学・政治",511,null,"　　日本学術振興会特別研究員",null,45,null,"なし",3]
[null,null,null,null,null,"商学・経済",512,null,"　　日本学術振興会外国人特別研究員",null,46,null,"非該当（学生・無職など）",8]
[null,null,null,null,null,"社会学",513,null,"　　その他のフェローシップ",null,47,null,"不明",9]
[null,null,null,null,null,"その他（分類不能を含む）",519,null,"その他（主な雇用財源が判別できない）",null,48]
[null,null,null,null,"その他","心理学",601,null,"雇用関係なし",null,49]
[null,null,null,null,null,"家政",602]
[null,null,null,null,null,"教育",603,null,null,null,null,null,"　　　　　　　　"]
[null,null,null,null,null,"芸術・その他",609,null,null,null,null,null,"　　　　　　　"]
[null,null,null,null,"不明",null,999]

{"sheet":"コード・短縮項目名","index":2,"n_rows":107,"n_cols":45,"rows_kept":107,"cut":false,"hidden":true,"merged":[[1,43,1,44],[1,2,1,3],[1,5,1,6],[1,10,1,11],[1,13,1,14],[1,16,1,17],[1,19,1,20],[1,22,1,23],[1,41,1,42],[1,25,1,26],[1,28,1,29],[1,32,1,33],[1,35,1,36],[1,38,1,39]]}
[]
[null,"3.性別\n(戸籍上の)","3.性別\n(戸籍上の)",null,"4.国籍\n10.所在\n20.所在","4.国籍\n10.所在\n20.所在",null,"5.生年\n(西暦4ケタ)","6.博士課程修了年度\n(西暦4ケタ)","7.博士号の有無","7.博士号の有無",null,"8.採用前の職業","8.採用前の職業",null,"9.所属\n19.所属","9.所属\n19.所属",null,"11.分野","11. 分野  ※7",null,"12.在籍研究室の企業との共同・受託研究の実績","12.在籍研究室の企業との共同・受託研究の実績 ※8",null,"13.主な雇用財源","13.主な雇用財源 ※9",null,"14.機関負担の社会保険加入状況","14.機関負担の社会保険加入状況",null,"15.所属開始年\n(西暦4ケタ)","16任期の長さ\n","16任期の長さ\n",null,"17.在籍状況\n(平成28年４月１日時点)","17.在籍状況\n(平成28年４月１日時点)",null,"18.転出・異動後の職業","18.転出・異動後の職業",null,"21.任期","21.任期",null,"※注釈"]
[57,{"$f":"D3&\".\"&C3","v":"1.男性"},"男性",1,null,null,99,1915,1935,{"$f":"L3&\".\"&K3","v":"1.あり(国内)"},"あり(国内)",1,{"$f":"O3&\".\"&N3","v":"11.学生(自機関の博士課程出身者)"},"学生(自機関の博士課程出身者)",11,{"$f":"R3&\".\"&Q3","v":"11.国立大学法人(附属病院を含む)"},"国立大学法人(附属病院を含む)",11,{"$f":"U3&\".\"&T3","v":"101.数学"},"数学",101,{"$f":"X3&\".\"&W3","v":"1.あり"},"あり",1,{"$f":"AA3&\".\"&Z3","v":"1.科学研究費補助金"},"科学研究費補助金",1,{"$f":"AD3&\".\"&AC3","v":"1.負担している"},"負担している",1,1935,{"$f":"AH3&\".\"&AG3","v":"1.1年未満"},"1年未満",1,{"$f":"AK3&\".\"&AJ3","v":"1.変更なし"},"変更なし",1,{"$f":"AN3&\".\"&AM3","v":"11.ポストドクター等 ※1"},"ポストドクター等 ※1",11,{"$f":"AQ3&\".\"&AP3","v":"1.あり(テニュアトラック) ※15 "},"あり(テニュアトラック) ※15 ",1,"※1"," 博士の学位を取得した者又は所定の単位を修得の上博士課程を退学した者（いわゆる「満期退学者」）のうち，任期付で採用されている者で，①大学や大学共同利用機関で研究業務に従事している者であって，教授・准教授・助教・助手等の学校教育法第92条に基づく教育・研究に従事する職にない者，又は，②独立行政法人等の公的研究機関（国立試験研究機関，公的試験研究機関を含む。）において研究業務に従事している者のうち，所属する研究グループのリーダー・主任研究員等の管理的な職にない者をいう。"]
[9.75,"2.女性","女性",2,{"$f":"G4&\".\"&F4","v":"10.日本"},"日本",10,1995,2015,"2.あり(国外)","あり(国外)",2,{"$f":"O4&\".\"&N4","v":"12.学生(他機関の博士課程出身者)"},"学生(他機関の博士課程出身者)",12,{"$f":"R4&\".\"&Q4","v":"12.公立大学(附属病院を含む)"},"公立大学(附属病院を含む)",12,"102.情報科学","情報科学",102,"2.なし","なし",2,"2.CREST","CREST",2,"2.負担していない","負担していない",2,2015,"2.1年以上2年未満","1年以上2年未満",2,"2.同一機関内でポストドクター等として雇用財源・研究室を変更","同一機関内でポストドクター等として雇用財源・研究室を変更",2,"12.助教・助手(大学教員)","助教・助手(大学教員)",12,"2.あり(上記以外)","あり(上記以外)",2,"※2"," 「研究補助者・技能者など」とは、研究業務に従事する者のうち、研究者を除く研究補助者、技能者及び研究事務その他の関係者を指します。分類は、総務省「科学技術研究調査報告」の「研究関係従業者」の定義に従います。（研究補助者：　研究者を補佐し、その指導に従って研究関係業務に従事する者；　技能者：　研究補助者以外の者で、研究者、研究補助者の指導及び監督の下に研究に付随する技術的サービスを行う者；研究事務その他の関係者：　研究関係業務のうち庶務、会計、雑務等に従事する者）"]
[null,null,null,null,"21.アメリカ合衆国","アメリカ合衆国",21,null,null,"3.なし(満期退学)","なし(満期退学)",3,"13.上記以外の学生(分類不能を含む)","上記以外の学生(分類不能を含む)",13,"13.私立大学(附属病院を含む)","私立大学(附属病院を含む)",13,"103.物理","物理",103,"9.不明","不明",9,"3.ERATO","ERATO",3,null,null,null,null,"3.2年以上3年未満","2年以上3年未満",3,"3.同一機関内で職階・職種を変更(ポストドクター等以外の職)","同一機関内で職階・職種を変更(ポストドクター等以外の職)",3,"13.講師(大学教員)","講師(大学教員)",13,"3.なし","なし",3,"※3","非研究・開発職に含まれる職業は、コード表「20.転出・異動後の職業」の例示を参照してください。"]
[null,null,null,null,"22.カナダ","カナダ",22,null,null,null,null,null,"21.ポストドクター等 ※1","ポストドクター等 ※1",21,"14.大学共同利用機関","大学共同利用機関",14,"104.化学","化学",104,null,null,null,"4.さきがけ","さきがけ",4,null,null,null,null,"4.3年以上4年未満","3年以上4年未満",4,"4.当該機関を転出","当該機関を転出",4,"14.准教授(大学教員)","准教授(大学教員)",14,"8.非該当(学生・無職など)","非該当(学生・無職など)",8,"※4","博物館、大学校、専修学校、塾等を含みます。"]
[null,null,null,null,"23.ブラジル","ブラジル",23,null,null,null,null,null,"22.大学教員(高専・短大・大学共同利用機関を含む)","大学教員(高専・短大・大学共同利用機関を含む)",22,"15.高専・短大","高専・短大",15,"105.生物","生物",105,null,null,null,"5.ACCEL","ACCEL",5,null,null,null,null,"5.4年以上5年以下","4年以上5年以下",5,"9.不詳・死亡","不詳・死亡",9,"15.教授(大学教員)","教授(大学教員)",15,"9.不明","不明",9,"※5","独立行政法人、特殊法人、国立試験研究機関、公設試験研究機関を意味します。"]
[null,null,null,null,"31.フランス","フランス",31,null,null,null,null,null,"23.その他の研究・開発職(分類不能を含む)","その他の研究・開発職(分類不能を含む)",23,"16.幼稚園・特別支援学校・小・中・高校","幼稚園・特別支援学校・小・中・高校",16,"106.地学","地学",106,null,null,null,"6.革新的先端研究開発支援事業","革新的先端研究開発支援事業",6,null,null,null,null,"6.雇用関係なし","雇用関係なし",6,null,null,null,"19.職階不明(大学教員)","職階不明(大学教員)",19,null,null,null,"※6","国又は地方公共団体の機関のうち，中央官庁及び都道府県庁など本来の立法事務、司法事務及び行政事務を行う官公署を指します。"]
[null,null,null,null,"32.ロシア","ロシア",32,null,null,null,null,null,"24.研究補助者・技能者など ※2","研究補助者・技能者など ※2",24,"19.上記以外の教育機関 ※4","上記以外の教育機関 ※4",19,"109.理学その他","理学その他",109,null,null,null,"7.先端的低炭素化技術開発","先端的低炭素化技術開発",7,null,null,null,null,"9.不明","不明",9,null,null,null,"21.研究・開発グループ・リーダー・主任研究員(相当)","研究・開発グループ・リーダー・主任研究員(相当)",21,null,null,null,"※7","「分野」コードは、総務省「科学技術研究調査報告」の大学等における「研究本務者の専門別」分類に従います。"]
[null,null,null,null,"33.ドイツ","ドイツ",33,null,null,null,null,null,"31.教員(幼稚園・特別支援学校・小・中・高校)","教員(幼稚園・特別支援学校・小・中・高校)",31,"21.国立・公立大学相当(附属病院を含む)","国立・公立大学相当(附属病院を含む)",21,"201.機械・船舶","機械・船舶",201,null,null,null,"8.社会技術研究開発","社会技術研究開発",8,null,null,null,null,null,null,null,null,null,null,"22.上記以外の研究・開発者(ポストドクター等を除く)","上記以外の研究・開発者(ポストドクター等を除く)",22,null,null,null,"※8","平成24年度内の所属研究室における、民間企業との共同研究または委託研究契約実績の有無をお答えください。"]
[null,null,null,null,"34.イギリス","イギリス",34,null,null,null,null,null,"32.教員以外の非研究・開発職 ※3","教員以外の非研究・開発職 ※3",32,"22.私立大学相当(附属病院を含む)","私立大学相当(附属病院を含む)",22,"202.電気・通信","電気・通信",202,null,null,null,"9.研究成果最適展開支援プログラム","研究成果最適展開支援プログラム",9,null,null,null,null,null,null,null,null,null,null,"23.派遣型研究・開発者(登録型・常用型) ※10","派遣型研究・開発者(登録型・常用型) ※10",23,null,null,null,"※9","平成24年度内のポストドクター等としての主な雇用財源を選択してください。なお、複数財源による雇用で、主要な財源が判別できない場合は、「49.その他（主な雇用財源が判別できない）」を選択してください。"]
[null,null,null,null,"41.中国","中国",41,null,null,null,null,null,"40.その他分類不能な職","その他分類不能な職",40,"29.上記以外の教育機関(分類不能を含む)","上記以外の教育機関(分類不能を含む)",29,"203.土木・建築","土木・建築",203,null,null,null,"10.戦略的イノベーション創出推進プログラム","戦略的イノベーション創出推進プログラム",10,null,null,null,null,null,null,null,null,null,null,"24.研究補助者・技能者など(技官など) ※2","研究補助者・技能者など(技官など) ※2",24,null,null,null,"※10","派遣先で労働サービスを提供する雇用形態（労働者派遣）であり、研究・開発活動に従事することを前提とする場合に限ります。"]
[null,null,null,null,"42.台湾","台湾",42,null,null,null,null,null,"50.無職(専業主夫・婦を含む)","無職(専業主夫・婦を含む)",50,"30.公的研究機関 ※5","公的研究機関 ※5",30,"204.応用化学","応用化学",204,null,null,null,"11.センター･オブ･イノベーション(COI)プログラム","センター･オブ･イノベーション(COI)プログラム",11,null,null,null,null,null,null,null,null,null,null,"25.その他の研究・開発職(分類不能を含む)","その他の研究・開発職(分類不能を含む)",25,null,null,null,"※11","弁護士、弁理士、特許審査官（補）、大学・公的研究機関・企業等の知的財産部門担当者などを指します。"]
[null,null,null,null,"43.韓国","韓国",43,null,null,null,null,null,"99.不明","不明",99,"40.官公庁 ※6","官公庁 ※6",40,"205.応用理学","応用理学",205,null,null,null,"12.産学共創基礎基盤研究プログラム","産学共創基礎基盤研究プログラム",12,null,null,null,null,null,null,null,null,null,null,"31.教員(幼稚園・特別支援学校・小・中・高校)","教員(幼稚園・特別支援学校・小・中・高校)",31,null,null,null,"※12","大学等において優れた研究成果の発掘や企業・地域との共同研究・事業のコーディネート等を専門とする職業を指します。"]
[null,null,null,null,"44.タイ","タイ",44,null,null,null,null,null,null,null,null,"50.民間企業(起業・自営業を含む)","民間企業(起業・自営業を含む)",50,"206.原子力","原子力",206,null,null,null,"13.マッチングプランナープログラム","マッチングプランナープログラム",13,null,null,null,null,null,null,null,null,null,null,"32.その他の教育職(塾・予備校講師など)","その他の教育職(塾・予備校講師など)",32,null,null,null,"※13","研究者とともに研究活動の企画・マネジメント、研究成果活用促進を行うことにより、研究者の研究活動の活性化や研究開発マネジメントの強化等を支える業務に従事する人材を指します。例えば、研究者とともに行う研究プロジェクトの企画、研究計画等に関する関係法令等対応状況の精査、研究プロジェクト案についての提案・交渉、研究プロジェクトの会計・財務・設備管理、研究プロジェクトの進捗管理、特許申請等研究成果のまとめ・活用促進などの業務が考えられます。"]
[null,null,null,null,"45.インドネシア","インドネシア",45,null,null,null,null,null,null,null,null,"60.非営利団体(公益・NPO・医療法人など)","非営利団体(公益・NPO・医療法人など)",60,"207.材料","材料",207,null,null,null,"14.大学発新産業創出プログラム","大学発新産業創出プログラム",14,null,null,null,null,null,null,null,null,null,null,"33.上記以外の教育関係職(教育支援・カウンセラーなど)","上記以外の教育関係職(教育支援・カウンセラーなど)",33,null,null,null,"※14","科学技術系研究者をはじめとする専門家と国民一般とを結ぶ役割を果たす職業を指します。例えば、科学記者、サイエンスライター、科学館・博物館関係者、大学・研究機関・企業等の広報担当者などが、これに該当します。但し、本調査では、理科教師は「教育関係職」として扱います。"]
[null,null,null,null,"46.ベトナム","ベトナム",46,null,null,null,null,null,null,null,null,"70.国際機関","国際機関",70,"208.繊維","繊維",208,null,null,null,"15.世界に誇る地域発研究開発・実証拠点推進プログラム","世界に誇る地域発研究開発・実証拠点推進プログラム",15,null,null,null,null,null,null,null,null,null,null,"41.医師・歯科医師・獣医師・薬剤師","医師・歯科医師・獣医師・薬剤師",41,null,null,null,"※15 ","テニュアトラックとは、 大学等において、公正で透明性の高い選抜により採用された若手研究者が審査を経てより安定的な職を得る前に、任期付の雇用形態で自立した研究者として経験を積むことができる仕組みを指します。"]
[null,null,null,null,"47.バングラデシュ","バングラデシュ",47,null,null,null,null,null,null,null,null,"80.その他の機関(分類不能な機関を含む)","その他の機関(分類不能な機関を含む)",80,"209.航空","航空",209,null,null,null,"16.先端計測分析技術・機器開発プログラム","先端計測分析技術・機器開発プログラム",16,null,null,null,null,null,null,null,null,null,null,"42.知的財産関連職(弁護士・弁理士など) ※11","知的財産関連職(弁護士・弁理士など) ※11",42]
[null,null,null,null,"48.マレーシア","マレーシア",48,null,null,null,null,null,null,null,null,"90.無所属(無職・専業主夫・婦など)","無所属(無職・専業主夫・婦など)",90,"210.経営工学","経営工学",210,null,null,null,"17.医療分野研究成果展開事業","医療分野研究成果展開事業",17,null,null,null,null,null,null,null,null,null,null,"43.産学連携コーディネーター ※12","産学連携コーディネーター ※12",43]
[null,null,null,null,"49.インド","インド",49,null,null,null,null,null,null,null,null,"99.不明","不明",99,"299.工学その他","工学その他",299,null,null,null,"18.地球規模課題対応国際科学技術協力プログラム","地球規模課題対応国際科学技術協力プログラム",18,null,null,null,null,null,null,null,null,null,null,"44.リサーチ・アドミニストレータ― ※13","リサーチ・アドミニストレータ― ※13",44]
[null,null,null,null,"51.オーストラリア","オーストラリア",51,null,null,null,null,null,null,null,null,null,null,null,"301.農学","農学",301,null,null,null,"19.戦略的国際共同研究プログラム","戦略的国際共同研究プログラム",19,null,null,null,null,null,null,null,null,null,null,"45.科学技術コミュニケーター(科学記者・学芸員など) ※14","科学技術コミュニケーター(科学記者・学芸員など) ※14",45]
[null,null,null,null,"61.エジプト","エジプト",61,null,null,null,null,null,null,null,null,null,null,null,"302.農芸化学","農芸化学",302,null,null,null,"20.医療分野国際科学技術共同研究開発推進事業","医療分野国際科学技術共同研究開発推進事業",20,null,null,null,null,null,null,null,null,null,null,"46.その他の専門知識を要する非研究・開発職","その他の専門知識を要する非研究・開発職",46]
[null,null,null,null,"71.イラン","イラン",71,null,null,null,null,null,null,null,null,null,null,null,"303.農業工学","農業工学",303,null,null,null,"21.再生医療実現拠点ネットワークプログラム","再生医療実現拠点ネットワークプログラム",21,null,null,null,null,null,null,null,null,null,null,"47.公務員(教育関係職・専門知識を要する職を除く)","公務員(教育関係職・専門知識を要する職を除く)",47]
[null,null,null,null,null,null,null,null,null,null,null,null,null,null,null,null,null,null,"304.農業経済","農業経済",304,null,null,null,"22.脳科学研究戦略推進プログラム・脳機能ネットワークの全容解明プロジェクト","脳科学研究戦略推進プログラム・脳機能ネットワークの全容解明プロジェクト",22,null,null,null,null,null,null,null,null,null,null,"48.起業(ベンチャーなど)","起業(ベンチャーなど)",48]
[null,null,null,null,null,null,null,null,null,null,null,null,null,null,null,null,null,null,"305.林学","林学",305,null,null,null,"23.未来社会実現のためのICT基盤技術の研究開発","未来社会実現のためのICT基盤技術の研究開発",23,null,null,null,null,null,null,null,null,null,null,"49.その他の非研究・開発職(事務職など)","その他の非研究・開発職(事務職など)",49]
[null,null,null,null,null,null,null,null,null,null,null,null,null,null,null,null,null,null,"306.林産学","林産学",306,null,null,null,"24.ナノテクノロジーを活用した環境技術開発","ナノテクノロジーを活用した環境技術開発",24,null,null,null,null,null,null,null,null,null,null,"50.学生","学生",50]
[null,null,null,null,null,null,null,null,null,null,null,null,null,null,null,null,null,null,"307.獣医・畜産","獣医・畜産",307,null,null,null,"25.元素戦略プロジェクト＜研究拠点形成型＞","元素戦略プロジェクト＜研究拠点形成型＞",25,null,null,null,null,null,null,null,null,null,null,"60.専業主夫・婦","専業主夫・婦",60]
[null,null,null,null,null,null,null,null,null,null,null,null,null,null,null,null,null,null,"308.水産","水産",308,null,null,null,"26.光・量子科学研究拠点形成に向けた基盤技術開発","光・量子科学研究拠点形成に向けた基盤技術開発",26,null,null,null,null,null,null,null,null,null,null,"70.無職(専業主夫・婦を除く)","無職(専業主夫・婦を除く)",70]
[null,null,null,null,null,null,null,null,null,null,null,null,null,null,null,null,null,null,"309.農学その他","農学その他",309,null,null,null,"27.宇宙航空科学技術推進委託費","宇宙航空科学技術推進委託費",27,null,null,null,null,null,null,null,null,null,null,"99.不明","不明",99]
[null,null,null,null,null,null,null,null,null,null,null,null,null,null,null,null,null,null,"401.医学","医学",401,null,null,null,"28.原子力システム研究開発事業","原子力システム研究開発事業",28]
[null,null,null,null,null,null,null,null,null,null,null,null,null,null,null,null,null,null,"402.歯学","歯学",402,null,null,null,"29.英知を結集した原子力科学技術・人材育成推進事業","英知を結集した原子力科学技術・人材育成推進事業",29]
[null,null,null,null,null,null,null,null,null,null,null,null,null,null,null,null,null,null,"403.薬学","薬学",403,null,null,null,"30.内閣府関連の競争的資金","内閣府関連の競争的資金",30]
[null,null,null,null,null,null,null,null,null,null,null,null,null,null,null,null,null,null,"404.看護","看護",404,null,null,null,"31.総務省関連の競争的資金","総務省関連の競争的資金",31]
[null,null,null,null,null,null,null,null,null,null,null,null,null,null,null,null,null,null,"409.保健その他","保健その他",409,null,null,null,"32.厚生労働科学研究費補助金","厚生労働科学研究費補助金",32]
[null,null,null,null,null,null,null,null,null,null,null,null,null,null,null,null,null,null,"501.文学","文学",501,null,null,null,"33.医療研究開発推進事業費補助金","医療研究開発推進事業費補助金",33]
[null,null,null,null,null,null,null,null,null,null,null,null,null,null,null,null,null,null,"502.史学","史学",502,null,null,null,"34.農林水産省関連の競争的資金","農林水産省関連の競争的資金",34]
[null,null,null,null,null,null,null,null,null,null,null,null,null,null,null,null,null,null,"503.哲学","哲学",503,null,null,null,"35.経済産業省関連の競争的資金","経済産業省関連の競争的資金",35]
[null,null,null,null,null,null,null,null,null,null,null,null,null,null,null,null,null,null,"509.人文その他","人文その他",509,null,null,null,"36.国土交通省関連の競争的資金","国土交通省関連の競争的資金",36]
[null,null,null,null,null,null,null,null,null,null,null,null,null,null,null,null,null,null,"511.法学・政治","法学・政治",511,null,null,null,"37.環境省関連の競争的資金","環境省関連の競争的資金",37]
[null,null,null,null,null,null,null,null,null,null,null,null,null,null,null,null,null,null,"512.商学・経済","商学・経済",512,null,null,null,"38.防衛省関連の競争的資金","防衛省関連の競争的資金",38]
[null,null,null,null,null,null,null,null,null,null,null,null,null,null,null,null,null,null,"513.社会学","社会学",513,null,null,null,"39.世界トップレベル研究拠点プログラム(WPI)","世界トップレベル研究拠点プログラム(WPI)",39]
[null,null,null,null,null,null,null,null,null,null,null,null,null,null,null,null,null,null,"519.社会その他","社会その他",519,null,null,null,"40.科学技術人材育成費補助金","科学技術人材育成費補助金",40]
[null,null,null,null,null,null,null,null,null,null,null,null,null,null,null,null,null,null,"601.心理学","心理学",601,null,null,null,"41.博士課程教育リーディングプログラム","博士課程教育リーディングプログラム",41]
[null,null,null,null,null,null,null,null,null,null,null,null,null,null,null,null,null,null,"602.家政","家政",602,null,null,null,"42.国以外からの外部資金(民間企業・財団等)","国以外からの外部資金(民間企業・財団等)",42]
[null,null,null,null,null,null,null,null,null,null,null,null,null,null,null,null,null,null,"603.教育","教育",603,null,null,null,"43.運営費交付金・私学助成・その他の自主財源","運営費交付金・私学助成・その他の自主財源",43]
[null,null,null,null,null,null,null,null,null,null,null,null,null,null,null,null,null,null,"609.芸術・その他","芸術・その他",609,null,null,null,"44.間接経費","間接経費",44]
[null,null,null,null,null,null,null,null,null,null,null,null,null,null,null,null,null,null,"999.不明","不明",999,null,null,null,"45.日本学術振興会特別研究員","日本学術振興会特別研究員",45]
[null,null,null,null,null,null,null,null,null,null,null,null,null,null,null,null,null,null,null,null,null,null,null,null,"46.日本学術振興会外国人特別研究員","日本学術振興会外国人特別研究員",46]
[null,null,null,null,null,null,null,null,null,null,null,null,null,null,null,null,null,null,null,null,null,null,null,null,"47.その他のフェローシップ","その他のフェローシップ",47]
[null,null,null,null,null,null,null,null,null,null,null,null,null,null,null,null,null,null,null,null,null,null,null,null,"48.その他(主な雇用財源が判別できない)","その他(主な雇用財源が判別できない)",48]
[null,null,null,null,null,null,null,null,null,null,null,null,null,null,null,null,null,null,null,null,null,null,null,null,"49.雇用関係なし","雇用関係なし",49]
[]
[]
[]
[]
[]
[]
[]
[]
[]
[]
[]
[]
[]
[]
[]
[]
[]
[]
[]
[]
[]
[]
[]
[]
[]
[]
[]
[]
[]
[]
[]
[]
[]
[]
[]
[]
[]
[]
[]
[]
[]
[]
[]
[]
[]
[]
[]
[]
[]
[null,null,null,null,null,null,null,null,null,null,null,null,null,"※1  博士の学位を取得した者又は所定の単位を修得の上博士課程を退学した者（いわゆる「満期退学者」）のうち，任期付で採用されている者で，①大学や大学共同利用機関で研究業務に従事している者であって，教授・准教授・助教・助手等の学校教育法第92条に基づく教育・研究に従事する職にない者，又は，②独立行政法人等の公的研究機関（国立試験研究機関，公的試験研究機関を含む。）において研究業務に従事している者のうち，所属する研究グループのリーダー・主任研究員等の管理的な職にない者をいう。",null,null,"※4 博物館、大学校、専修学校、塾等を含みます。",null,null,"※7 「分野」コードは、総務省「科学技術研究調査報告」の大学等における「研究本務者の専門別」分類に従います。",null,null,"※8 平成24年度内の所属研究室における、民間企業との共同研究または委託研究契約実績の有無をお答えください。",null,null,"※9 平成24年度内のポストドクター等としての主な雇用財源を選択してください。なお、複数財源による雇用で、主要な財源が判別できない場合は、「49.その他（主な雇用財源が判別できない）」を選択してください。",null,null,null,null,null,null,null,null,null,null,null,null,"※1  博士の学位を取得した者又は所定の単位を修得の上博士課程を退学した者（いわゆる「満期退学者」）のうち，任期付で採用されている者で，①大学や大学共同利用機関で研究業務に従事している者であって，教授・准教授・助教・助手等の学校教育法第92条に基づく教育・研究に従事する職にない者，又は，②独立行政法人等の公的研究機関（国立試験研究機関，公的試験研究機関を含む。）において研究業務に従事している者のうち，所属する研究グループのリーダー・主任研究員等の管理的な職にない者をいう。",null,null,"※15  テニュアトラックとは、 大学等において、公正で透明性の高い選抜により採用された若手研究者が審査を経てより安定的な職を得る前に、任期付の雇用形態で自立した研究者として経験を積むことができる仕組みを指します。"]
[null,null,null,null,null,null,null,null,null,null,null,null,null,"※2  「研究補助者・技能者など」とは、研究業務に従事する者のうち、研究者を除く研究補助者、技能者及び研究事務その他の関係者を指します。分類は、総務省「科学技術研究調査報告」の「研究関係従業者」の定義に従います。（研究補助者：　研究者を補佐し、その指導に従って研究関係業務に従事する者；　技能者：　研究補助者以外の者で、研究者、研究補助者の指導及び監督の下に研究に付随する技術的サービスを行う者；研究事務その他の関係者：　研究関係業務のうち庶務、会計、雑務等に従事する者）",null,null,"※5 独立行政法人、特殊法人、国立試験研究機関、公設試験研究機関を意味します。",null,null,null,null,null,null,null,null,null,null,null,null,null,null,null,null,null,null,null,null,null,"※10 派遣先で労働サービスを提供する雇用形態（労働者派遣）であり、研究・開発活動に従事することを前提とする場合に限ります。"]
[null,null,null,null,null,null,null,null,null,null,null,null,null,"※3 非研究・開発職に含まれる職業は、コード表「20.転出・異動後の職業」の例示を参照してください。",null,null,"※6 国又は地方公共団体の機関のうち，中央官庁及び都道府県庁など本来の立法事務、司法事務及び行政事務を行う官公署を指します。",null,null,null,null,null,null,null,null,null,null,null,null,null,null,null,null,null,null,null,null,null,"※2  「研究補助者・技能者など」とは、研究業務に従事する者のうち、研究者を除く研究補助者、技能者及び研究事務その他の関係者を指します。分類は、総務省「科学技術研究調査報告」の「研究関係従業者」の定義に従います。（研究補助者：　研究者を補佐し、その指導に従って研究関係業務に従事する者；　技能者：　研究補助者以外の者で、研究者、研究補助者の指導及び監督の下に研究に付随する技術的サービスを行う者；研究事務その他の関係者：　研究関係業務のうち庶務、会計、雑務等に従事する者）"]
[null,null,null,null,null,null,null,null,null,null,null,null,null,null,null,null,null,null,null,null,null,null,null,null,null,null,null,null,null,null,null,null,null,null,null,null,null,null,"※11 弁護士、弁理士、特許審査官（補）、大学・公的研究機関・企業等の知的財産部門担当者などを指します。"]
[null,null,null,null,null,null,null,null,null,null,null,null,null,null,null,null,null,null,null,null,null,null,null,null,null,null,null,null,null,null,null,null,null,null,null,null,null,null,"※12 大学等において優れた研究成果の発掘や企業・地域との共同研究・事業のコーディネート等を専門とする職業を指します。"]
[null,null,null,null,null,null,null,null,null,null,null,null,null,null,null,null,null,null,null,null,null,null,null,null,null,null,null,null,null,null,null,null,null,null,null,null,null,null,"※13 研究者とともに研究活動の企画・マネジメント、研究成果活用促進を行うことにより、研究者の研究活動の活性化や研究開発マネジメントの強化等を支える業務に従事する人材を指します。例えば、研究者とともに行う研究プロジェクトの企画、研究計画等に関する関係法令等対応状況の精査、研究プロジェクト案についての提案・交渉、研究プロジェクトの会計・財務・設備管理、研究プロジェクトの進捗管理、特許申請等研究成果のまとめ・活用促進などの業務が考えられます。"]
[null,null,null,null,null,null,null,null,null,null,null,null,null,null,null,null,null,null,null,null,null,null,null,null,null,null,null,null,null,null,null,null,null,null,null,null,null,null,"※14 科学技術系研究者をはじめとする専門家と国民一般とを結ぶ役割を果たす職業を指します。例えば、科学記者、サイエンスライター、科学館・博物館関係者、大学・研究機関・企業等の広報担当者などが、これに該当します。但し、本調査では、理科教師は「教育関係職」として扱います。"]